bitfinex/quotes_BTCUSD_20250615
["timestamp","ask_amount","ask_price","bid_price","bid_amount"]
[1749961799430,1.00235462,105710.0,105700.0,0.0193]
[1749961799858,1.00235469,105710.0,105700.0,0.0193]
[1749961801412,1.00235471,105710.0,105700.0,0.0193]
[1749961801616,0.99347891,105710.0,105700.0,0.0193]
[1749961801823,1.00235471,105710.0,105700.0,0.0193]
[1749961802267,1.00235446,105710.0,105700.0,0.0193]
[1749961802468,0.99347866,105710.0,105700.0,0.0193]
[1749961802693,1.00235413,105710.0,105700.0,0.0193]
[1749961803030,1.00235422,105710.0,105700.0,0.0193]
[1749961803455,0.98682206,105710.0,105700.0,0.0193]
[1749961803666,1.00235424,105710.0,105700.0,0.0193]
[1749961804184,1.00235426,105710.0,105700.0,0.0193]
[1749961804393,1.00235428,105710.0,105700.0,0.0193]
[1749961804607,0.99569762,105710.0,105700.0,0.0193]
[1749961804830,1.00235429,105710.0,105700.0,0.0193]
[1749961805649,1.0023543,105710.0,105700.0,0.0193]
[1749961805850,0.99347874,105710.0,105700.0,0.0193]
[1749961806076,1.00235431,105710.0,105700.0,0.0193]
[1749961806769,0.99347874,105710.0,105700.0,0.0193]
[1749961806967,1.0023543,105710.0,105700.0,0.0193]
[1749961807449,0.98682206,105710.0,105700.0,0.0193]
[1749961807673,1.00235429,105710.0,105700.0,0.0193]
[1749961807898,0.99347873,105710.0,105700.0,0.0193]
[1749961808119,1.00235429,105710.0,105700.0,0.0193]
[1749961808344,1.00235418,105710.0,105700.0,0.0193]
[1749961808801,0.98682206,105710.0,105700.0,0.0193]
[1749961809021,1.00235418,105710.0,105700.0,0.0193]
[1749961809244,1.00235425,105710.0,105700.0,0.0193]
[1749961809467,0.98682206,105710.0,105700.0,0.0193]
[1749961809925,1.00235425,105710.0,105700.0,0.0193]
[1749961810163,1.00235427,105710.0,105700.0,0.0193]
[1749961810658,1.00235385,105710.0,105700.0,0.0193]
[1749961811537,1.00235396,105710.0,105700.0,0.0193]
[1749961812213,1.00235392,105710.0,105700.0,0.0193]
[1749961812450,1.00235391,105710.0,105700.0,0.0193]
[1749961812686,1.00235383,105710.0,105700.0,0.0193]
[1749961812947,1.00235402,105710.0,105700.0,0.0193]
[1749961813192,1.00235383,105710.0,105700.0,0.0193]
[1749961813429,0.99569736,105710.0,105700.0,0.0193]
[1749961813659,1.00235426,105710.0,105700.0,0.0193]
[1749961815049,0.9956976,105710.0,105700.0,0.0193]
[1749961815264,0.99347872,105710.0,105700.0,0.0193]
[1749961815492,0.99569761,105710.0,105700.0,0.0193]
[1749961815675,1.00235427,105710.0,105700.0,0.0193]
[1749961816160,0.98682206,105710.0,105700.0,0.0193]
[1749961816374,0.99569761,105710.0,105700.0,0.0193]
[1749961816583,0.99347872,105710.0,105700.0,0.0193]
[1749961816801,1.00235427,105710.0,105700.0,0.0193]
[1749961817379,1.00235428,105710.0,105700.0,0.0193]
[1749961817578,0.98682206,105710.0,105700.0,0.0193]
[1749961817780,1.00235417,105710.0,105700.0,0.0193]
[1749961817947,0.98682206,105710.0,105700.0,0.0193]
[1749961818166,1.00235429,105710.0,105700.0,0.0193]
[1749961818367,0.99569765,105710.0,105700.0,0.0193]
[1749961818575,1.00235434,105710.0,105700.0,0.0193]
[1749961819063,1.00235435,105710.0,105700.0,0.0193]
[1749961819266,1.00235436,105710.0,105700.0,0.0193]
[1749961819467,1.00235412,105710.0,105700.0,0.0193]
[1749961819677,0.99569752,105710.0,105700.0,0.0193]
[1749961819883,0.98682206,105710.0,105700.0,0.0193]
[1749961820298,0.99347864,105710.0,105700.0,0.0193]
[1749961820507,0.99569751,105710.0,105700.0,0.0193]
[1749961820721,0.98682206,105710.0,105700.0,0.0193]
[1749961820928,0.99347864,105710.0,105700.0,0.0193]
[1749961821147,1.00235419,105710.0,105700.0,0.0193]
[1749961821354,1.00235434,105710.0,105700.0,0.0193]
[1749961821761,1.00235433,105710.0,105700.0,0.0193]
[1749961821965,0.98682206,105710.0,105700.0,0.0193]
[1749961822176,0.99569765,105710.0,105700.0,0.0193]
[1749961822422,0.98682206,105710.0,105700.0,0.0193]
[1749961822629,0.99347864,105710.0,105700.0,0.0193]
[1749961822832,1.00235434,105710.0,105700.0,0.0193]
[1749961823036,0.98682206,105710.0,105700.0,0.0193]
[1749961823262,0.99569776,105710.0,105700.0,0.0193]
[1749961823466,0.99347883,105710.0,105700.0,0.0193]
[1749961823695,0.98682206,105710.0,105700.0,0.0193]
[1749961823871,0.99347883,105710.0,105700.0,0.0193]
[1749961824099,0.98682206,105710.0,105700.0,0.0193]
[1749961824319,1.00235454,105710.0,105700.0,0.0193]
[1749961824540,0.98682206,105710.0,105700.0,0.0193]
[1749961824747,0.99347885,105710.0,105700.0,0.0193]
[1749961824957,1.00235457,105710.0,105700.0,0.0193]
[1749961825624,0.99347885,105710.0,105700.0,0.0193]
[1749961825845,1.00235457,105710.0,105700.0,0.20851475]
[1749961826072,1.00235462,105710.0,105700.0,0.20851475]
[1749961826284,0.99569783,105710.0,105700.0,0.20851475]
[1749961826502,0.99569784,105710.0,105700.0,0.20851475]
[1749961826931,0.98682206,105710.0,105700.0,0.20851475]
[1749961827147,1.00235467,105710.0,105700.0,0.21797548]
[1749961827591,0.99347889,105710.0,105700.0,0.22743612]
[1749961827805,1.00235467,105710.0,105700.0,0.22743612]
[1749961828020,1.00235468,105710.0,105700.0,0.21797548]
[1749961828246,1.00235467,105710.0,105700.0,0.21797548]
[1749961828457,0.99569784,105710.0,105700.0,0.21797548]
[1749961828709,0.9934789,105710.0,105700.0,0.21797548]
[1749961828924,1.00235468,105710.0,105700.0,0.21797548]
[1749961829326,0.9934789,105710.0,105700.0,0.21797548]
[1749961829578,0.99569769,105710.0,105700.0,0.0193]
[1749961829796,0.99569767,105710.0,105700.0,0.0193]
[1749961830030,0.99347878,105710.0,105700.0,0.0193]
[1749961830253,1.0023544,105710.0,105700.0,0.0193]
[1749961830682,0.99569768,105710.0,105700.0,0.0193]
[1749961830902,1.0023544,105710.0,105700.0,0.0193]
[1749961831111,0.99347878,105710.0,105700.0,0.0193]
[1749961831331,0.99569768,105710.0,105700.0,0.0193]
[1749961831544,1.00235439,105710.0,105700.0,0.0193]
[1749961832317,0.99569768,105710.0,105700.0,0.0193]
[1749961832498,1.00235472,105710.0,105700.0,0.0193]
[1749961833129,0.99347891,105710.0,105700.0,0.0193]
[1749961833358,0.99569787,105710.0,105700.0,0.0193]
[1749961833567,1.00235472,105710.0,105700.0,0.0193]
[1749961834014,1.00235471,105710.0,105700.0,0.0193]
[1749961834232,0.99347892,105710.0,105700.0,0.0193]
[1749961834453,1.00235474,105710.0,105700.0,0.0193]
[1749961834895,1.00235319,105710.0,105700.0,0.0193]
[1749961835200,1.00235115,105710.0,105700.0,0.0193]
[1749961835403,1.00235118,105710.0,105700.0,0.0193]
[1749961835823,0.9934774,105710.0,105700.0,0.0193]
[1749961836038,0.99347733,105710.0,105700.0,0.0193]
[1749961836249,0.99569572,105710.0,105700.0,0.0193]
[1749961836446,0.9934773,105710.0,105700.0,0.0193]
[1749961836588,0.99569572,105710.0,105700.0,0.0193]
[1749961836822,1.00235097,105710.0,105700.0,0.0193]
[1749961837216,1.00235098,105710.0,105700.0,0.0193]
[1749961837644,0.98682206,105710.0,105700.0,0.0193]
[1749961837824,1.00235105,105710.0,105700.0,0.0193]
[1749961838363,1.00235103,105710.0,105700.0,0.0193]
[1749961838563,1.00235083,105710.0,105700.0,0.0193]
[1749961838781,0.99347725,105710.0,105700.0,0.0193]
[1749961839005,1.00235077,105710.0,105700.0,0.0193]
[1749961839218,1.00235034,105710.0,105700.0,0.0193]
[1749961839427,0.54962367,105710.0,105700.0,0.0193]
[1749961839648,1.00235034,105710.0,105700.0,0.0193]
[1749961839860,0.99569536,105710.0,105700.0,0.0193]
[1749961840073,1.00235034,105710.0,105700.0,0.0193]
[1749961840306,0.99347704,105710.0,105700.0,0.0193]
[1749961840526,0.98682206,105710.0,105700.0,0.0193]
[1749961841179,0.99347701,105710.0,105700.0,0.0193]
[1749961841409,1.00235028,105710.0,105700.0,0.0193]
[1749961842078,0.98682206,105710.0,105700.0,0.0193]
[1749961842280,0.99569533,105710.0,105700.0,0.0193]
[1749961842691,1.00235028,105710.0,105700.0,0.0193]
[1749961842903,0.99569533,105710.0,105700.0,0.0193]
[1749961843111,1.00235028,105710.0,105700.0,0.0193]
[1749961843313,0.98682206,105710.0,105700.0,0.0193]
[1749961843523,1.00235028,105710.0,105700.0,0.0193]
[1749961843950,1.0023503,105710.0,105700.0,0.0193]
[1749961844157,0.99569534,105710.0,105700.0,0.0193]
[1749961844363,1.00235028,105710.0,105700.0,0.0193]
[1749961844568,0.99569533,105710.0,105700.0,0.0193]
[1749961844793,0.99347701,105710.0,105700.0,0.0193]
[1749961844906,1.00235029,105710.0,105700.0,0.0193]
[1749961845114,1.00235029,105710.0,105700.0,0.02876073]
[1749961845115,0.99347701,105710.0,105700.0,0.02876073]
[1749961845359,0.9934773,105710.0,105700.0,0.02876073]
[1749961845992,1.00235095,105710.0,105700.0,0.02876073]
[1749961846195,0.9934773,105710.0,105700.0,0.02876073]
[1749961846458,1.00235096,105710.0,105700.0,0.02876073]
[1749961847013,1.00235095,105710.0,105700.0,0.02876073]
[1749961847523,0.99569768,105710.0,105700.0,0.0193]
[1749961848278,1.00235439,105710.0,105700.0,0.0193]
[1749961848725,0.99569768,105710.0,105700.0,0.0193]
[1749961848939,1.00235439,105710.0,105700.0,0.20851475]
[1749961849148,1.0023544,105710.0,105700.0,0.21797548]
[1749961850067,0.99347878,105710.0,105700.0,0.21797548]
[1749961850279,0.98682206,105710.0,105700.0,0.21797548]
[1749961850496,1.0023544,105710.0,105700.0,0.21797548]
[1749961850928,1.0023544,105710.0,105700.0,0.0193]
[1749961851142,0.98682206,105710.0,105700.0,0.02876073]
[1749961851357,0.99569768,105710.0,105700.0,0.0193]
[1749961851575,1.0023544,105710.0,105700.0,0.0193]
[1749961853042,0.99569768,105710.0,105700.0,0.0193]
[1749961853428,1.0023544,105710.0,105700.0,0.0193]
[1749961853633,0.99569768,105710.0,105700.0,0.0193]
[1749961853850,1.0023544,105710.0,105700.0,0.0193]
[1749961853975,1.00235441,105710.0,105700.0,0.0193]
[1749961854191,1.0023544,105710.0,105700.0,0.0193]
[1749961854396,0.99347878,105710.0,105700.0,0.0193]
[1749961854883,1.0023544,105710.0,105700.0,0.0193]
[1749961855699,0.99569768,105710.0,105700.0,0.0193]
[1749961855936,0.99347878,105710.0,105700.0,0.0193]
[1749961856143,1.0023544,105710.0,105700.0,0.0193]
[1749961856347,0.98682206,105710.0,105700.0,0.0193]
[1749961856551,1.00235441,105710.0,105700.0,0.0193]
[1749961857330,0.99347878,105710.0,105700.0,0.0193]
[1749961857590,0.99569769,105710.0,105700.0,0.0193]
[1749961857804,1.00235441,105710.0,105700.0,0.0193]
[1749961858012,0.98682206,105710.0,105700.0,0.0193]
[1749961858220,1.00235441,105710.0,105700.0,0.0193]
[1749961858432,0.99347878,105710.0,105700.0,0.0193]
[1749961858638,1.00235465,105710.0,105700.0,0.0193]
[1749961858853,1.00235494,105710.0,105700.0,0.0193]
[1749961859064,1.0023552,105710.0,105700.0,0.0193]
[1749961859274,1.00235522,105710.0,105700.0,0.0193]
[1749961859668,1.0023561,105710.0,105700.0,0.0193]
[1749961859887,0.99569882,105710.0,105700.0,0.0193]
[1749961860107,1.00235638,105710.0,105700.0,0.0193]
[1749961860326,0.99569937,105710.0,105700.0,0.0193]
[1749961860540,1.00235735,105710.0,105700.0,0.0193]
[1749961860747,1.00235865,105710.0,105700.0,0.0193]
[1749961860965,1.00236304,105710.0,105700.0,0.0193]
[1749961861177,1.00236357,105710.0,105700.0,0.0193]
[1749961861389,0.99570319,105710.0,105700.0,0.0193]
[1749961861607,1.00236404,105710.0,105700.0,0.0193]
[1749961864053,0.98682206,105710.0,105700.0,0.0193]
[1749961864261,1.00236404,105710.0,105700.0,0.0193]
[1749961864466,0.99348291,105710.0,105700.0,0.0193]
[1749961864666,1.00236404,105710.0,105700.0,0.0193]
[1749961864882,1.00236415,105710.0,105700.0,0.0193]
[1749961865076,0.99348302,105710.0,105700.0,0.0193]
[1749961865318,0.99570334,105710.0,105700.0,0.0193]
[1749961865527,0.99348302,105710.0,105700.0,0.004]
[1749961865924,1.00236433,105710.0,105700.0,0.004]
[1749961866507,0.99570336,105710.0,105700.0,0.004]
[1749961866846,1.00236433,105710.0,105700.0,0.004]
[1749961867052,0.99348303,105710.0,105700.0,0.004]
[1749961867238,0.98682206,105710.0,105700.0,0.004]
[1749961867434,0.99348302,105710.0,105700.0,0.004]
[1749961867866,0.99570335,105710.0,105700.0,0.004]
[1749961868068,1.00236431,105710.0,105700.0,0.004]
[1749961868466,0.99570335,105710.0,105700.0,0.004]
[1749961868698,1.00236432,105710.0,105700.0,0.004]
[1749961868899,1.00236433,105710.0,105700.0,0.004]
[1749961869252,1.01746432,105710.0,105700.0,0.004]
[1749961869454,1.01080336,105710.0,105700.0,0.004]
[1749961869660,1.01746433,105710.0,105700.0,0.004]
[1749961869862,1.00858302,105710.0,105700.0,0.004]
[1749961870078,1.0174643,105710.0,105700.0,0.004]
[1749961870921,1.01080334,105710.0,105700.0,0.004]
[1749961871362,1.00858303,105710.0,105700.0,0.004]
[1749961871576,1.01746433,105710.0,105700.0,0.004]
[1749961872101,1.00858303,105710.0,105700.0,0.004]
[1749961872304,1.01080336,105710.0,105700.0,0.004]
[1749961872743,1.01746433,105710.0,105700.0,0.004]
[1749961872987,1.00858303,105710.0,105700.0,0.004]
[1749961873195,1.00192206,105710.0,105700.0,0.004]
[1749961873409,1.00858303,105710.0,105700.0,0.004]
[1749961873532,1.01746433,105710.0,105700.0,0.004]
[1749961873932,1.00858303,105710.0,105700.0,0.004]
[1749961874154,1.01746433,105710.0,105700.0,0.004]
[1749961874643,0.99570328,105710.0,105700.0,0.004]
[1749961874843,1.00236419,105710.0,105700.0,0.004]
[1749961875038,1.00236418,105710.0,105700.0,0.004]
[1749961875265,0.99348297,105710.0,105700.0,0.004]
[1749961875449,0.99570331,105710.0,105700.0,0.004]
[1749961875682,1.00236425,105710.0,105700.0,0.004]
[1749961876383,0.993483,105710.0,105700.0,0.004]
[1749961876603,0.99570331,105710.0,105700.0,0.004]
[1749961876834,0.99570322,105710.0,105700.0,0.004]
[1749961877039,1.00236409,105710.0,105700.0,0.004]
[1749961877325,0.99348293,105710.0,105700.0,0.004]
[1749961877538,1.00236407,105710.0,105700.0,0.004]
[1749961879409,0.99570321,105710.0,105700.0,0.004]
[1749961879614,1.00236407,105710.0,105700.0,0.004]
[1749961881567,1.00236405,105710.0,105700.0,0.004]
[1749961881792,1.00236404,105710.0,105700.0,0.004]
[1749961883220,1.00236405,105710.0,105700.0,0.004]
[1749961883443,0.9957032,105710.0,105700.0,0.004]
[1749961883665,1.00236402,105710.0,105700.0,0.004]
[1749961883876,1.00236397,105710.0,105700.0,0.004]
[1749961885649,1.00236418,105710.0,105700.0,0.004]
[1749961885827,0.99348309,105710.0,105700.0,0.004]
[1749961886033,1.00236447,105710.0,105700.0,0.004]
[1749961888360,1.00236379,105710.0,105700.0,0.004]
[1749961888801,1.00236378,105710.0,105700.0,0.004]
[1749961889222,1.00236379,105710.0,105700.0,0.004]
[1749961890041,1.00236288,105710.0,105700.0,0.004]
[1749961890455,0.98682206,105710.0,105700.0,0.004]
[1749961890670,1.00236449,105710.0,105700.0,0.004]
[1749961891307,0.98682206,105710.0,105700.0,0.004]
[1749961891520,1.00236449,105710.0,105700.0,0.004]
[1749961891772,0.99570345,105710.0,105700.0,0.004]
[1749961891983,1.00236449,105710.0,105700.0,0.004]
[1749961892392,0.9934831,105710.0,105700.0,0.004]
[1749961892601,1.00236449,105710.0,105700.0,0.004]
[1749961892822,0.9934831,105710.0,105700.0,0.004]
[1749961893041,0.98682206,105710.0,105700.0,0.004]
[1749961893250,1.00236449,105710.0,105700.0,0.004]
[1749961893456,0.98682206,105710.0,105700.0,0.004]
[1749961893897,1.00236428,105710.0,105700.0,0.004]
[1749961894229,0.99348301,105710.0,105700.0,0.004]
[1749961894440,1.00236428,105710.0,105700.0,0.004]
[1749961894651,0.98682206,105710.0,105700.0,0.004]
[1749961894855,1.00908301,105710.0,105700.0,0.004]
[1749961895085,1.01130333,105710.0,105700.0,0.004]
[1749961895298,1.01796428,105710.0,105700.0,0.004]
[1749961895716,1.01130333,105710.0,105700.0,0.004]
[1749961895926,1.01796428,105710.0,105700.0,0.004]
[1749961896147,1.00908301,105710.0,105700.0,0.004]
[1749961896360,1.01130333,105710.0,105700.0,0.004]
[1749961896574,1.00242206,105710.0,105700.0,0.004]
[1749961896790,1.01796428,105710.0,105700.0,0.004]
[1749961897625,1.01130333,105710.0,105700.0,0.004]
[1749961897830,1.00908301,105710.0,105700.0,0.004]
[1749961898055,1.01130333,105710.0,105700.0,0.004]
[1749961898267,1.01796428,105710.0,105700.0,0.004]
[1749961898481,1.00908301,105710.0,105700.0,0.004]
[1749961898691,1.01796428,105710.0,105700.0,0.004]
[1749961898919,1.00908301,105710.0,105700.0,0.004]
[1749961899388,1.01796428,105710.0,105700.0,0.004]
[1749961900508,1.00242206,105710.0,105700.0,0.004]
[1749961900753,1.009083,105710.0,105700.0,0.004]
[1749961900953,1.01130333,105710.0,105700.0,0.004]
[1749961901158,1.01796428,105710.0,105700.0,0.004]
[1749961901595,1.00242206,105710.0,105700.0,0.004]
[1749961901794,1.01130333,105710.0,105700.0,0.004]
[1749961902017,1.01796428,105710.0,105700.0,0.004]
[1749961902238,1.00242206,105710.0,105700.0,0.004]
[1749961902444,1.01796428,105710.0,105700.0,0.004]
[1749961902880,1.009083,105710.0,105700.0,0.004]
[1749961903070,1.01796425,105710.0,105700.0,0.004]
[1749961903512,1.00908889,105710.0,105700.0,0.004]
[1749961903977,0.99348554,105710.0,105700.0,0.004]
[1749961904643,0.98682604,105710.0,105700.0,0.004]
[1749961904814,0.99348554,105710.0,105700.0,0.004]
[1749961905526,0.9846062,105710.0,105700.0,0.004]
[1749961905743,0.99348554,105710.0,105700.0,0.004]
[1749961906141,0.9779467,105710.0,105700.0,0.004]
[1749961906372,0.9846062,105710.0,105700.0,0.004]
[1749961906582,0.99348554,105710.0,105700.0,0.004]
[1749961906790,0.98682604,105710.0,105700.0,0.004]
[1749961906974,0.9779467,105710.0,105700.0,0.004]
[1749961907249,0.9846062,105710.0,105700.0,0.004]
[1749961907458,0.99348554,105710.0,105700.0,0.004]
[1749961907938,0.9846062,105710.0,105700.0,0.004]
[1749961908143,0.99348554,105710.0,105700.0,0.004]
[1749961908359,0.9846062,105710.0,105700.0,0.004]
[1749961908780,0.99348554,105710.0,105700.0,0.004]
[1749961910057,0.98682604,105710.0,105700.0,0.004]
[1749961910264,0.9779467,105710.0,105700.0,0.004]
[1749961910442,0.98682604,105710.0,105700.0,0.004]
[1749961910652,0.99348554,105710.0,105700.0,0.004]
[1749961911103,0.9846062,105710.0,105700.0,0.004]
[1749961911244,0.9779467,105710.0,105700.0,0.004]
[1749961911453,0.98460602,105710.0,105700.0,0.004]
[1749961911654,0.99348516,105710.0,105700.0,0.004]
[1749961911854,0.98460606,105710.0,105700.0,0.004]
[1749961912058,0.98460605,105710.0,105700.0,0.004]
[1749961912285,0.9934852,105710.0,105700.0,0.004]
[1749961912644,0.9779467,105710.0,105700.0,0.004]
[1749961912872,0.99348504,105710.0,105700.0,0.004]
[1749961913060,0.99348506,105710.0,105700.0,0.004]
[1749961913264,0.99348523,105710.0,105700.0,0.004]
[1749961913503,0.99348522,105710.0,105700.0,0.004]
[1749961913734,0.9934852,105710.0,105700.0,0.004]
[1749961914071,0.99348517,105710.0,105700.0,0.004]
[1749961914249,0.99348516,105710.0,105700.0,0.004]
[1749961914453,0.99348528,105710.0,105700.0,0.004]
[1749961914895,0.98682589,105710.0,105700.0,0.004]
[1749961915074,0.99348544,105710.0,105700.0,0.004]
[1749961915281,0.98682599,105710.0,105700.0,0.004]
[1749961915488,0.9779467,105710.0,105700.0,0.004]
[1749961915699,0.99348546,105710.0,105700.0,0.004]
[1749961915919,0.99348547,105710.0,105700.0,0.004]
[1749961916335,0.99348542,105710.0,105700.0,0.004]
[1749961916550,0.98682597,105710.0,105700.0,0.004]
[1749961916780,0.98460645,105710.0,105700.0,0.004]
[1749961917008,0.99348608,105710.0,105700.0,0.004]
[1749961917259,0.98460646,105710.0,105700.0,0.004]
[1749961917476,0.98682638,105710.0,105700.0,0.004]
[1749961917676,0.98460645,105710.0,105700.0,0.004]
[1749961917891,0.99348612,105710.0,105700.0,0.004]
[1749961918100,0.98682637,105710.0,105700.0,0.004]
[1749961918315,0.99348612,105710.0,105700.0,0.004]
[1749961918532,0.99348762,105710.0,105700.0,0.004]
[1749961918749,0.99348875,105710.0,105700.0,0.0205]
[1749961919375,0.98460758,105710.0,105700.0,0.0205]
[1749961919585,0.99348875,105710.0,105700.0,0.0205]
[1749961920044,0.98460758,105710.0,105700.0,0.0205]
[1749961920255,0.98682787,105710.0,105700.0,0.0205]
[1749961920510,0.99348872,105710.0,105700.0,0.0205]
[1749961920715,0.98682787,105710.0,105700.0,0.0205]
[1749961920964,0.99348872,105710.0,105700.0,0.0205]
[1749961921217,0.99348869,105710.0,105700.0,0.0205]
[1749961922220,0.98682783,105710.0,105700.0,0.0205]
[1749961922478,0.99348856,105710.0,105700.0,0.21917548]
[1749961922733,0.99348843,105710.0,105700.0,0.0205]
[1749961922985,0.99348844,105710.0,105700.0,0.0205]
[1749961923243,0.9868277,105710.0,105700.0,0.0205]
[1749961923484,0.99348845,105710.0,105700.0,0.0205]
[1749961923768,0.99348842,105710.0,105700.0,0.0205]
[1749961924233,0.99348842,105710.0,105700.0,0.21917548]
[1749961924234,0.9779467,105710.0,105700.0,0.21917548]
[1749961924466,0.98460745,105710.0,105700.0,0.0205]
[1749961924677,0.99348843,105710.0,105700.0,0.0205]
[1749961924888,0.98460745,105710.0,105700.0,0.0205]
[1749961925097,0.99348845,105710.0,105700.0,0.02996073]
[1749961925317,0.98460745,105710.0,105700.0,0.0205]
[1749961925529,0.99348843,105710.0,105700.0,0.0205]
[1749961925738,0.9934884,105710.0,105700.0,0.0205]
[1749961926169,0.98682769,105710.0,105700.0,0.0205]
[1749961926379,0.99348843,105710.0,105700.0,0.0205]
[1749961926817,0.36994774,105710.0,105700.0,0.21917548]
[1749961927028,0.39832578,105710.0,105700.0,0.78221276]
[1749961927242,0.40778501,105710.0,105700.0,0.78221276]
[1749961927502,0.40112451,105710.0,105700.0,0.33835939]
[1749961927714,0.40112532,105710.0,105700.0,0.33835939]
[1749961927924,0.40778579,105710.0,105700.0,0.33835939]
[1749961928174,0.57864269,105710.0,105700.0,0.32889928]
[1749961928388,0.58086285,105710.0,105700.0,0.32889928]
[1749961928612,1.01303667,105710.0,105700.0,0.32889928]
[1749961928821,1.02191733,105710.0,105700.0,0.25429649]
[1749961929026,1.01303669,105710.0,105700.0,0.25429649]
[1749961929239,1.01525697,105710.0,105700.0,0.25429649]
[1749961929451,1.02191755,105710.0,105700.0,0.25429649]
[1749961929661,1.00357712,105710.0,105700.0,0.25429649]
[1749961929869,1.0124579,105710.0,105700.0,0.25429649]
[1749961930475,1.01245791,105710.0,105700.0,0.25429649]
[1749961930685,1.00357712,105710.0,105700.0,0.25429649]
[1749961930885,0.99691653,105710.0,105700.0,0.25429649]
[1749961931099,1.00357712,105710.0,105700.0,0.25429649]
[1749961931301,0.99691653,105710.0,105700.0,0.25429649]
[1749961931504,1.00579732,105710.0,105700.0,0.25429649]
[1749961931715,1.01245791,105710.0,105700.0,0.25429649]
[1749961931926,1.00357712,105710.0,105700.0,0.25429649]
[1749961932134,1.01245791,105710.0,105700.0,0.25429649]
[1749961932340,1.00579361,105710.0,105700.0,0.25429649]
[1749961932752,1.00579361,105710.0,105700.0,0.25429667]
[1749961933346,0.99633386,105710.0,105700.0,0.25429667]
[1749961933894,0.99633327,105710.0,105700.0,0.25429667]
[1749961934097,0.97799694,105710.0,105700.0,0.25429667]
[1749961934306,0.98687344,105710.0,105700.0,0.25429667]
[1749961934524,0.98687344,105710.0,105700.0,0.24483612]
[1749961934731,0.98687342,105710.0,105700.0,0.24483612]
[1749961934909,0.98687349,105710.0,105700.0,0.23537548]
[1749961935143,0.98465436,105710.0,105700.0,0.23537548]
[1749961935348,0.9868735,105710.0,105700.0,0.23537548]
[1749961935768,0.99353093,105710.0,105700.0,0.23537548]
[1749961935977,0.99353096,105710.0,105700.0,0.23537548]
[1749961936207,0.99353098,105710.0,105700.0,0.04616073]
[1749961936553,0.54967761,105710.0,105700.0,0.04616073]
[1749961936760,0.993531,105710.0,105700.0,0.04616073]
[1749961937042,0.98465442,105710.0,105700.0,0.04616073]
[1749961937270,0.99353107,105710.0,105700.0,0.04616073]
[1749961937710,0.98465442,105710.0,105700.0,0.04616073]
[1749961937922,0.98687359,105710.0,105700.0,0.0367]
[1749961938133,0.99353107,105710.0,105700.0,0.0367]
[1749961938340,0.98465442,105710.0,105700.0,0.0367]
[1749961938551,0.99353107,105710.0,105700.0,0.0367]
[1749961938981,0.97799694,105710.0,105700.0,0.0367]
[1749961939164,0.99349108,105710.0,105700.0,0.0367]
[1749961939938,0.99349108,105710.0,105700.0,0.0205]
[1749961940567,0.98683359,105710.0,105700.0,0.0205]
[1749961940774,0.97795694,105710.0,105700.0,0.0205]
[1749961940981,0.98683364,105710.0,105700.0,0.0205]
[1749961941188,0.99349117,105710.0,105700.0,0.0205]
[1749961942573,0.98683364,105710.0,105700.0,0.0205]
[1749961942788,0.98461447,105710.0,105700.0,0.0205]
[1749961942942,0.99349117,105710.0,105700.0,0.0205]
[1749961943367,0.98683364,105710.0,105700.0,0.0205]
[1749961943565,0.98461447,105710.0,105700.0,0.0205]
[1749961943742,0.99349117,105710.0,105700.0,0.0205]
[1749961943948,0.98683364,105710.0,105700.0,0.0205]
[1749961944212,0.99349117,105710.0,105700.0,0.0205]
[1749961944428,0.98461505,105710.0,105700.0,0.0205]
[1749961944629,0.97795694,105710.0,105700.0,0.0205]
[1749961944840,0.98461505,105710.0,105700.0,0.0205]
[1749961945059,0.99349254,105710.0,105700.0,0.0205]
[1749961945260,0.98461505,105710.0,105700.0,0.0205]
[1749961945492,0.99349253,105710.0,105700.0,0.0205]
[1749961945856,0.97795694,105710.0,105700.0,0.0205]
[1749961946056,0.98683442,105710.0,105700.0,0.0205]
[1749961946236,0.99349253,105710.0,105700.0,0.0205]
[1749961946650,0.98683442,105710.0,105700.0,0.0205]
[1749961946851,0.99349241,105710.0,105700.0,0.0205]
[1749961947424,0.99349225,105710.0,105700.0,0.0205]
[1749961947927,0.98461493,105710.0,105700.0,0.0205]
[1749961948352,0.99349225,105710.0,105700.0,0.0205]
[1749961948478,0.99349235,105710.0,105700.0,0.0205]
[1749961948678,0.99349249,105710.0,105700.0,0.0205]
[1749961948948,0.99349256,105710.0,105700.0,0.0205]
[1749961949131,0.98683444,105710.0,105700.0,0.0205]
[1749961949290,0.98461506,105710.0,105700.0,0.0205]
[1749961949499,0.99349256,105710.0,105700.0,0.0205]
[1749961949705,0.97795694,105710.0,105700.0,0.0205]
[1749961949909,0.99349256,105710.0,105700.0,0.0205]
[1749961950333,0.9934939,105710.0,105700.0,0.0205]
[1749961950872,0.9868352,105710.0,105700.0,0.0205]
[1749961951069,0.99349389,105710.0,105700.0,0.0205]
[1749961952313,0.9868352,105710.0,105700.0,0.0205]
[1749961952513,0.99349389,105710.0,105700.0,0.0205]
[1749961952664,0.99349389,105710.0,105700.0,0.004]
[1749961953092,0.99349241,105710.0,105700.0,0.004]
[1749961953436,0.98683435,105710.0,105700.0,0.004]
[1749961953867,0.99349241,105710.0,105700.0,0.004]
[1749961954074,0.98683435,105710.0,105700.0,0.004]
[1749961954281,0.99349241,105710.0,105700.0,0.004]
[1749961954489,0.97795694,105710.0,105700.0,0.004]
[1749961954707,0.99349232,105710.0,105700.0,0.004]
[1749961954927,0.99349219,105710.0,105700.0,0.004]
[1749961955081,0.99349215,105710.0,105700.0,0.004]
[1749961955281,0.99349213,105710.0,105700.0,0.004]
[1749961955491,0.99349211,105710.0,105700.0,0.004]
[1749961955698,0.98683418,105710.0,105700.0,0.004]
[1749961955927,0.99349211,105710.0,105700.0,0.004]
[1749961956138,0.98683418,105710.0,105700.0,0.004]
[1749961956312,0.98461487,105710.0,105700.0,0.004]
[1749961957006,0.98683418,105710.0,105700.0,0.004]
[1749961957228,0.97795694,105710.0,105700.0,0.004]
[1749961957669,0.99349211,105710.0,105700.0,0.004]